bitfinex/quotes_SOLUSD_20250102
["timestamp","ask_amount","ask_price","bid_price","bid_amount"]
[1735821947809,0.787,208.94,208.86,0.71797599]
[1735821947984,0.787,208.94,208.89,7.96015486]
[1735821950292,8.74715486,208.94,208.87,7.96015486]
[1735821951403,0.787,208.94,208.88,7.96015486]
[1735821952327,8.74715486,208.94,208.87,7.96015486]
[1735821953126,0.787,208.94,208.88,7.96015486]
[1735821953316,8.74715486,208.94,208.87,7.96015486]
[1735821955430,31.73703886,208.93,208.86,7.960155]
[1735821955598,7.96015486,208.89,208.81,7.96015486]
[1735821955925,7.96015486,208.89,208.81,27.13821286]
[1735821956230,7.96015486,208.89,208.81,7.96015486]
[1735821956397,27.96015486,208.9,208.83,7.96015486]
[1735821956828,20.0,208.9,208.85,7.96015486]
[1735821958425,20.0,208.9,208.84,7.96015486]
[1735821961231,20.0,208.9,208.83,7.96015486]
[1735821962030,20.0,208.88,208.8,21.43799412]
[1735821962226,7.96015486,208.89,208.82,7.96015486]
[1735821962699,27.96015486,208.9,208.83,7.96015486]
[1735821963210,20.0,208.9,208.84,7.96015486]
[1735821964241,0.787,208.94,208.89,7.96015486]
[1735821965034,20.0,208.93,208.89,7.96015486]
[1735821965745,0.787,208.94,208.89,7.96015486]
[1735821966936,0.787,208.94,208.88,7.96015486]
[1735821968140,0.787,208.94,208.9,7.96015486]
[1735821968652,0.787,208.94,208.88,7.96015486]
[1735821968943,0.787,208.94,208.91,19.171849]
[1735821969540,8.74715486,208.94,208.84,20.71818068]
[1735821969717,8.74715486,208.94,208.89,19.173214]
[1735821970449,0.787,208.94,208.89,19.173214]
[1735821971727,0.787,208.94,208.86,7.96015486]
[1735821971728,7.96015486,208.93,208.86,7.96015486]
[1735821971943,7.96015486,208.91,208.87,19.173214]
[1735821972452,7.96015486,208.91,208.82,7.96015486]
[1735821972833,7.96015486,208.9,208.82,7.96015486]
[1735821974351,7.96015486,208.9,208.81,7.960155]
[1735821974544,7.96015486,208.9,208.82,7.96015486]
[1735821975359,23.776884,208.92,208.82,7.96015486]
[1735821975852,7.96015486,208.9,208.82,7.96015486]
[1735821976232,7.96015486,208.92,208.85,7.96015486]
[1735821976431,1.6036,208.93,208.85,7.96015486]
[1735821977353,20.0,208.91,208.85,7.96015486]
[1735821978431,1.6036,208.93,208.85,7.96015486]
[1735821979662,1.6036,208.93,208.84,7.96015486]
[1735821982152,27.96015486,208.92,208.84,7.96015486]
[1735821982748,23.776884,208.91,208.81,7.960155]
[1735821983070,7.96015486,208.9,208.82,7.96015486]
[1735821983250,7.96015486,208.9,208.81,7.960155]
[1735821983436,7.96015486,208.9,208.82,7.96015486]
[1735821985264,20.0,208.88,208.82,7.96015486]
[1735821988985,7.96015486,208.9,208.83,7.96015486]
[1735821989173,7.96015486,208.9,208.82,7.96015486]
[1735821990875,7.96015486,208.89,208.82,7.96015486]
[1735821991372,23.776884,208.91,208.84,7.96015486]
[1735821992278,27.96015486,208.92,208.84,7.96015486]
[1735821992455,20.0,208.91,208.86,7.96015486]
[1735821994986,2.32179766,208.93,208.86,7.96015486]
[1735821996683,20.0,208.92,208.86,7.96015486]
[1735821997977,0.71819766,208.93,208.86,7.96015486]
[1735821998689,20.0,208.92,208.86,7.96015486]
[1735821999055,20.71819766,208.92,208.86,7.96015486]
[1735821999568,0.787,208.94,208.86,7.96015486]
[1735822000188,1.50519766,208.94,208.86,7.96015486]
[1735822000987,7.96015486,208.93,208.86,7.96015486]
[1735822001159,0.71819766,208.92,208.86,7.96015486]
[1735822001583,0.71819766,208.92,208.83,6.093]
[1735822001786,0.71819766,208.92,208.85,7.96015486]
[1735822004003,7.96015486,208.91,208.83,6.093]
[1735822004183,0.71819766,208.9,208.83,6.093]
[1735822005087,0.71819766,208.9,208.84,7.96015486]
[1735822005270,0.71819766,208.93,208.86,7.96015486]
[1735822005587,0.787,208.94,208.86,7.96015486]
[1735822006097,1.50519766,208.94,208.86,7.96015486]
[1735822006666,9.46535252,208.94,208.86,7.96015486]
[1735822007997,7.96015486,208.93,208.86,7.96015486]
[1735822008180,8.67835252,208.92,208.83,6.093]
[1735822008385,8.67835252,208.92,208.83,14.05315486]
[1735822013403,0.71819766,208.92,208.83,14.05315486]
[1735822013607,7.96015486,208.91,208.83,14.05315486]
[1735822014203,0.71819766,208.93,208.83,14.05315486]
[1735822014408,0.71819766,208.93,208.85,7.96015486]
[1735822014706,7.96015486,208.92,208.85,7.96015486]
[1735822014884,0.71819766,208.91,208.85,7.96015486]
[1735822015275,0.71819766,208.91,208.84,7.96015486]
[1735822015484,0.71819766,208.91,208.83,6.093]
[1735822019121,20.787,208.94,208.84,8.67826498]
[1735822019122,28.67835252,208.93,208.84,8.67826498]
[1735822020326,28.67835252,208.93,208.84,7.96015486]
[1735822020490,7.96015486,208.91,208.83,6.093]
[1735822020696,7.96015486,208.89,208.83,6.093]
[1735822020996,7.96015486,208.87,208.81,6.63850752]
[1735822021208,7.96015486,208.89,208.81,6.63850752]
[1735822021521,20.0,208.9,208.83,7.96015486]
[1735822021906,20.0,208.9,208.82,0.71809693]
[1735822022102,7.96015486,208.89,208.81,6.63850752]
[1735822022293,7.96015486,208.87,208.81,6.63850752]
[1735822024635,0.71819766,208.86,208.81,6.63850752]
[1735822025028,8.67835252,208.86,208.81,6.63850752]
[1735822025524,7.96015486,208.86,208.81,6.63850752]
[1735822025722,7.96015486,208.86,208.75,0.71824357]
[1735822025723,7.96015486,208.82,208.73,13.98471535]
[1735822025913,7.96015486,208.78,208.73,13.98471535]
[1735822026117,7.96015486,208.77,208.75,7.960155]
[1735822026315,7.96015486,208.77,208.73,13.98471535]
[1735822026507,7.96015486,208.75,208.73,16.636831]
[1735822026712,7.96015486,208.74,208.73,16.636831]
[1735822026913,0.71819766,208.74,208.71,7.54781535]
[1735822027108,0.71819766,208.79,208.73,7.96015486]
[1735822027335,7.96015486,208.8,208.74,7.96015486]
[1735822028625,1.5773,208.88,208.79,7.96015486]
[1735822028825,0.71819766,208.87,208.81,7.96015486]
[1735822029031,10.25565252,208.88,208.81,7.96015486]
[1735822029231,7.96015486,208.87,208.8,7.96015486]
[1735822030338,12.40806767,208.87,208.8,12.40806767]
[1735822031017,12.40806767,208.87,208.79,32.40806767]
[1735822031432,12.40806767,208.86,208.79,32.40806767]
[1735822033824,0.71819766,208.85,208.79,12.40806767]
[1735822034648,0.71819766,208.85,208.8,12.40806767]
[1735822034853,12.40806767,208.84,208.77,12.40806767]
[1735822035015,12.40806767,208.8,208.73,12.40806767]
[1735822035210,0.71819766,208.79,208.73,12.40806767]
[1735822035523,12.40806767,208.8,208.73,12.40806767]
[1735822035921,0.71819766,208.83,208.75,12.40806767]
[1735822035922,12.40806767,208.82,208.75,12.40806767]
[1735822036145,0.71819766,208.81,208.75,12.40806767]
[1735822036439,20.0,208.85,208.78,12.40806767]
[1735822036735,1.5773,208.88,208.83,12.40806767]
[1735822037111,1.5773,208.88,208.82,12.40806767]
[1735822038925,1.5773,208.88,208.81,12.40806767]
[1735822040956,0.71819766,208.96,208.87,12.40806767]
[1735822041246,0.71819766,208.96,208.9,12.40806767]
[1735822044154,2.28399766,208.98,208.9,12.40806767]
[1735822044647,12.40806767,208.96,208.84,0.71795066]
[1735822044939,12.40806767,208.94,208.87,12.40806767]
[1735822045116,0.71819766,208.93,208.85,12.40806767]
[1735822046545,0.71819766,208.93,208.87,12.40806767]
[1735822049349,12.40806767,208.95,208.87,12.40806767]
[1735822050738,32.40806767,208.97,208.89,12.40806767]
[1735822051036,33.12626533,208.97,208.89,12.40806767]
[1735822052854,33.12626533,208.97,208.87,12.40806767]
[1735822052855,12.40806767,208.95,208.87,12.40806767]
[1735822053058,13.12626533,208.95,208.87,12.40806767]
[1735822053235,20.71819766,208.97,208.87,12.40806767]
[1735822053441,12.40806767,208.96,208.87,12.40806767]
[1735822053640,13.12626533,208.96,208.87,12.40806767]
[1735822053849,12.40806767,208.95,208.88,12.40806767]
[1735822054032,33.12626533,208.97,208.88,12.40806767]
[1735822054351,12.40806767,208.97,208.89,0.71788873]
[1735822054748,12.40806767,208.97,208.9,12.40806767]
[1735822055738,1.5658,208.98,208.9,12.40806767]
[1735822056156,12.40806767,208.97,208.9,12.40806767]
[1735822062577,12.40806767,208.95,208.88,12.40806767]
[1735822062746,12.40806767,208.95,208.85,0.71783097]
[1735822062747,12.40806767,208.93,208.86,12.40806767]
[1735822063074,12.40806767,208.93,208.87,0.71795268]
[1735822063250,12.40806767,208.95,208.87,0.71795268]
[1735822065082,12.40806767,208.93,208.86,12.40806767]
[1735822065786,12.40806767,208.89,208.82,12.40806767]
[1735822067585,12.40806767,208.9,208.82,12.40806767]
[1735822068161,12.40806767,208.9,208.83,12.40806767]
[1735822069479,0.71819766,208.89,208.83,12.40806767]
[1735822070193,0.71819766,208.89,208.82,12.40806767]
[1735822071889,13.12626533,208.89,208.82,12.40806767]
[1735822072198,0.71819766,208.89,208.82,12.40806767]
[1735822072365,0.71819766,208.89,208.82,7.94008413]
[1735822074393,0.71819766,208.89,208.83,7.94008413]
[1735822074694,0.71819766,208.89,208.82,7.94008413]
[1735822075994,0.71819766,208.89,208.81,7.94008413]
[1735822076294,8.65828179,208.9,208.82,7.94008413]
[1735822076889,7.94008413,208.89,208.82,7.94008413]
[1735822077067,8.65828179,208.88,208.81,7.94008413]
[1735822077266,8.65828179,208.88,208.8,7.94008413]
[1735822078899,8.65828179,208.88,208.81,7.94008413]
[1735822081980,0.71819766,208.88,208.82,7.94008413]
[1735822082480,20.0,208.89,208.83,7.94008413]
[1735822082669,20.71819766,208.89,208.83,7.94008413]
[1735822083181,20.71819766,208.89,208.82,7.94008413]
[1735822083383,28.65828179,208.89,208.82,7.94008413]
[1735822085618,20.71819766,208.89,208.82,7.94008413]
[1735822085906,0.71819766,208.88,208.82,7.94008413]
[1735822086705,27.94008413,208.89,208.82,7.94008413]
[1735822086885,0.71819766,208.88,208.82,7.94008413]
[1735822087812,7.94008413,208.86,208.77,8.65827967]
[1735822087992,0.71819766,208.85,208.78,7.94008413]
[1735822090619,0.71819766,208.85,208.77,7.940084]
[1735822090920,0.71819766,208.85,208.77,7.94008413]
[1735822091218,1.6221,208.84,208.77,7.94008413]
[1735822091418,0.71819766,208.83,208.77,7.94008413]
[1735822091801,8.65828179,208.83,208.76,7.94008413]
[1735822092001,7.94008413,208.81,208.74,7.94008413]
[1735822092205,0.71819766,208.8,208.74,7.94008413]
[1735822092390,8.65828179,208.8,208.73,7.94008413]
[1735822093306,7.94008413,208.78,208.68,0.71851494]
[1735822093506,0.71819766,208.77,208.71,7.94008413]
[1735822094709,7.94008413,208.76,208.69,11.9691]
[1735822094912,0.71819766,208.75,208.69,7.94008413]
[1735822095594,0.71819766,208.76,208.7,7.94008413]
[1735822095800,2.30019766,208.77,208.72,7.94008413]
[1735822096899,2.30019766,208.77,208.71,7.94008413]
[1735822098230,10.24028179,208.77,208.7,7.94008413]
[1735822098911,4.99999999,208.84,208.73,7.94008413]
[1735822098912,0.71819766,208.78,208.73,7.94008413]
[1735822099126,0.71819766,208.82,208.75,7.94008413]
[1735822099320,0.71819766,208.82,208.77,7.94008413]
[1735822100129,0.71819766,208.83,208.77,7.94008413]
[1735822100307,0.71819766,208.83,208.76,7.94008413]
[1735822101201,7.94008413,208.82,208.72,20.0]
[1735822101413,0.71819766,208.81,208.73,7.94008413]
[1735822102021,7.94008413,208.82,208.75,7.94008413]
[1735822102228,10.23198179,208.84,208.75,7.94008413]
[1735822103406,10.23198179,208.84,208.77,7.94008413]
[1735822105914,1.5737,208.84,208.77,7.94008413]
[1735822108137,1.5737,208.84,208.79,7.94008413]
[1735822108818,1.5737,208.84,208.77,7.94008413]
[1735822109020,9.51378413,208.84,208.77,7.94008413]
[1735822109942,1.5737,208.84,208.77,7.94008413]
[1735822110146,0.71819766,208.89,208.82,7.94008413]
[1735822110330,7.54121178,208.98,208.88,7.94008413]
[1735822110331,1.90261891,208.93,208.88,7.94008413]
[1735822110636,16.19949357,208.98,208.9,7.94008413]
[1735822111416,8.65828179,208.98,208.9,7.94008413]
[1735822111615,7.94008413,208.98,208.9,7.94008413]
[1735822112229,12.39803975,208.97,208.89,12.39803975]
[1735822115643,0.787,209.0,208.94,12.39803975]
[1735822115823,13.18503975,209.0,208.92,12.39803975]
[1735822116142,12.39803975,208.98,208.9,24.79607975]
[1735822116332,13.18503975,209.0,208.92,12.39803975]
[1735822119826,0.787,209.0,208.94,12.39803975]
[1735822120547,0.787,209.0,208.96,12.39803975]
[1735822120955,0.787,209.0,208.94,12.39803975]
[1735822121556,0.71819766,209.04,209.02,20.0]
[1735822121727,0.71819766,209.15,209.05,6.1661]
[1735822121920,0.71819766,209.15,209.11,12.39803975]
[1735822122428,0.71819766,209.15,209.07,12.39803975]
[1735822123235,20.0,209.13,209.07,12.39803975]
[1735822123437,12.39803975,209.08,208.92,6.1661]
[1735822123647,12.39803975,209.03,208.96,12.39803975]
[1735822123818,0.71819766,209.07,208.99,12.39803975]
[1735822124022,12.67339766,209.12,209.01,12.39803975]
[1735822124458,20.0,209.09,209.01,12.39803975]
[1735822124749,13.11623741,209.08,209.01,12.39803975]
[1735822125652,12.39803975,209.02,208.96,0.71756218]
[1735822125857,12.39803975,208.98,208.92,12.39803975]
[1735822126024,12.39803975,209.0,208.93,32.39803975]
[1735822126219,20.36453975,209.07,208.94,20.71780521]
[1735822126525,0.71819766,209.06,208.97,12.39803975]
[1735822126722,12.39803975,209.04,208.96,12.39803975]
[1735822127051,0.71819766,209.03,208.97,12.39803975]
[1735822127243,0.71819766,209.04,208.98,12.39803975]
[1735822127449,12.39803975,208.99,208.9,12.39804]
[1735822127625,12.39803975,208.97,208.9,24.79607975]
[1735822127826,13.11623741,209.02,208.94,12.39803975]
[1735822128028,13.11623741,209.02,208.9,12.39804]
[1735822128029,0.71819766,209.02,208.9,12.39804]
[1735822128233,0.71819766,209.02,208.9,24.79607975]
[1735822128443,12.39803975,208.93,208.81,6.3019]
[1735822128624,13.11623741,208.93,208.85,12.39803975]
[1735822128830,12.39803975,208.92,208.86,19.173093]
[1735822129045,1.5467,208.94,208.84,12.39803975]
[1735822129046,13.11623741,208.91,208.84,12.39803975]
[1735822129347,12.39803975,208.87,208.84,12.39804]
[1735822129530,0.71819766,208.86,208.81,12.39803975]
[1735822129724,0.71819766,208.89,208.77,23.776884]
[1735822129928,23.776884,208.9,208.76,12.398039]
[1735822130136,12.39803975,208.84,208.77,12.39803975]
[1735822130338,0.71819766,208.83,208.77,12.39803975]
[1735822130752,19.70303741,208.84,208.77,12.39803975]
[1735822130932,13.11623741,208.83,208.76,12.39803975]
[1735822131122,0.71819766,208.83,208.75,12.398039]
[1735822131426,0.71819766,208.83,208.76,12.39803975]
[1735822131634,13.93623975,208.81,208.74,12.39803975]
[1735822131845,12.39803975,208.79,208.72,12.39803975]
[1735822132161,0.71819766,208.78,208.73,12.39803975]
[1735822132353,0.71819766,208.78,208.74,12.39803975]
[1735822132530,0.71819766,208.8,208.74,12.39803975]
[1735822132954,1.5382,208.81,208.79,12.39803975]
[1735822133250,13.11623741,208.8,208.71,19.183773]
[1735822133435,12.39803975,208.79,208.72,12.39803975]
[1735822133639,13.11623741,208.8,208.73,12.39803975]
[1735822133952,12.39803975,208.76,208.71,19.183773]
[1735822134164,0.71819766,208.75,208.69,12.39803975]
[1735822134457,0.71819766,208.75,208.69,24.79607975]
[1735822134755,0.71819766,208.75,208.69,12.39803975]
[1735822135246,12.39803975,208.73,208.66,12.39803975]
[1735822135466,0.71819766,208.72,208.66,12.39803975]
[1735822135963,0.71819766,208.72,208.67,12.39803975]
[1735822136571,0.71819766,208.73,208.67,12.39803975]
[1735822136744,13.11623741,208.73,208.66,12.39803975]
[1735822137372,12.39803975,208.71,208.64,12.39803975]
[1735822137572,0.71819766,208.7,208.64,12.39803975]
[1735822138843,0.71819766,208.7,208.63,12.39803975]
[1735822138844,12.39803975,208.69,208.63,12.39803975]
[1735822139043,14.70153741,208.68,208.61,12.39803975]
[1735822139450,2.30349766,208.68,208.62,12.39803975]
[1735822139662,2.30349766,208.68,208.63,12.39803975]
[1735822139866,2.30349766,208.68,208.62,12.39803975]
[1735822141379,2.30349766,208.68,208.63,12.39803975]
[1735822144796,1.5853,208.68,208.64,12.39803975]
[1735822145097,0.71819766,208.7,208.66,12.39803975]
[1735822145767,0.71819766,208.7,208.61,0.71882828]
[1735822145970,0.71819766,208.71,208.58,5.0]
[1735822146186,6.5458,208.78,208.7,12.39803975]
[1735822146366,7.26399766,208.78,208.74,12.39803975]
[1735822146563,19.66203741,208.78,208.7,12.39803975]
[1735822147076,7.26399766,208.78,208.71,12.39803975]
[1735822147393,12.39803975,208.72,208.63,12.39803975]
[1735822147567,12.39803975,208.7,208.63,12.39803975]
[1735822147767,0.71819766,208.69,208.63,12.39803975]
[1735822147970,0.71819766,208.69,208.62,12.39804]
[1735822147971,13.11623741,208.69,208.62,24.79607975]
[1735822148384,13.11623741,208.69,208.62,12.39804]
[1735822148576,1.5701,208.67,208.62,12.39804]
[1735822148775,1.5701,208.67,208.55,0.71888931]
[1735822148776,0.71819766,208.66,208.6,12.39803975]
[1735822149285,6.86249766,208.66,208.61,12.39804]
[1735822151297,19.26053741,208.66,208.61,12.39804]
[1735822152103,19.26053741,208.66,208.5,12.39803975]
[1735822152104,12.39803975,208.62,208.5,12.39803975]
[1735822152303,12.39803975,208.57,208.51,19.205506]
[1735822152481,0.71819766,208.56,208.51,19.205506]
[1735822152676,12.39803975,208.57,208.51,19.205506]
[1735822153002,12.39803975,208.55,208.48,12.39803975]
[1735822153202,12.39803975,208.55,208.46,12.39803975]
[1735822153406,12.39803975,208.55,208.49,12.398039]
[1735822153779,1.6613,208.56,208.5,12.39803975]
[1735822154003,2.37949766,208.56,208.5,12.39803975]
[1735822154604,2.37949766,208.56,208.49,12.398039]
[1735822155071,14.77753741,208.56,208.49,24.79607875]
[1735822155505,14.77753741,208.56,208.49,12.398039]
[1735822156207,14.77753741,208.56,208.49,24.79607875]
[1735822157105,2.22679766,208.61,208.54,12.39803975]
[1735822157410,2.22679766,208.61,208.57,12.39803975]
[1735822157411,1.5086,208.61,208.57,12.39803975]
[1735822157902,1.5086,208.61,208.55,12.39803975]
[1735822158811,14.62483741,208.61,208.55,12.39803975]
[1735822158993,14.62483741,208.61,208.54,12.39803975]
[1735822161604,12.39803975,208.6,208.53,12.39803975]
[1735822161819,12.39803975,208.58,208.51,12.39803975]
[1735822162120,13.11623741,208.57,208.5,12.39803975]
[1735822162319,0.71819766,208.57,208.51,12.39803975]
[1735822163111,13.11623741,208.57,208.51,12.39803975]
[1735822164120,12.39803975,208.56,208.5,12.39803975]
[1735822164293,13.11623741,208.55,208.49,12.398039]
[1735822164492,13.11623741,208.59,208.52,12.39803975]
[1735822164689,13.11623741,208.59,208.53,12.39803975]
[1735822165119,13.90663975,208.61,208.54,12.39803975]
[1735822165418,0.71819766,208.6,208.54,12.39803975]
[1735822165793,0.71819766,208.6,208.55,12.39803975]
[1735822166398,0.71819766,208.6,208.54,12.39803975]
[1735822168008,0.71819766,208.6,208.53,12.39803975]
[1735822168399,0.71819766,208.6,208.54,12.39803975]
[1735822170522,13.90663975,208.61,208.54,12.39803975]
[1735822170824,0.71819766,208.6,208.54,12.39803975]
[1735822170995,14.62483741,208.61,208.54,12.39803975]
[1735822171189,14.62483741,208.61,208.53,12.39803975]
[1735822172023,12.39803975,208.6,208.53,12.39803975]
[1735822172196,13.11623741,208.6,208.53,12.39803975]
[1735822174423,12.39803975,208.6,208.53,12.39803975]
[1735822174824,14.62483741,208.61,208.54,12.39803975]
[1735822174999,1.5086,208.61,208.57,12.39803975]
[1735822175817,1.5086,208.61,208.56,12.39803975]
[1735822176422,13.90663975,208.61,208.54,12.39803975]
[1735822176610,14.62483741,208.61,208.54,12.39803975]
[1735822177510,12.39803975,208.58,208.51,12.39803975]
[1735822177714,12.39803975,208.56,208.49,24.79607875]
[1735822177909,12.39803975,208.57,208.5,12.39803975]
[1735822178542,12.39803975,208.57,208.51,12.39803975]
[1735822179029,0.71819766,208.56,208.5,12.39803975]
[1735822179822,0.71819766,208.56,208.49,12.398039]
[1735822180003,13.11623741,208.56,208.5,12.39803975]
[1735822180205,13.11623741,208.56,208.49,24.79607875]
[1735822180423,12.39803975,208.55,208.49,12.398039]
[1735822184632,12.39803975,208.55,208.49,24.79607875]
[1735822184807,13.11623741,208.56,208.49,24.79607875]
[1735822185433,13.11623741,208.56,208.5,12.39803975]
[1735822186235,13.11623741,208.56,208.49,24.79607875]
[1735822186835,12.39803975,208.55,208.49,12.398039]
[1735822190917,13.11623741,208.56,208.49,12.398039]
[1735822191543,13.11623741,208.56,208.49,24.79607875]
[1735822192041,0.71819766,208.56,208.49,24.79607875]
[1735822192541,13.11623741,208.56,208.49,24.79607875]
[1735822194931,0.71819766,208.56,208.49,24.79607875]
[1735822195130,13.11623741,208.56,208.49,24.79607875]
[1735822195855,0.71819766,208.56,208.49,24.79607875]
[1735822196052,6.068,208.57,208.51,12.39803975]
[1735822196231,6.068,208.57,208.51,7.96300192]
[1735822197753,0.71819766,208.56,208.5,7.96300192]
[1735822198122,8.68119958,208.56,208.49,20.36104092]
[1735822198339,7.96300192,208.56,208.49,20.36104092]
[1735822198536,8.68119958,208.56,208.49,20.36104092]
[1735822199829,0.71819766,208.56,208.49,20.36104092]
[1735822200046,14.03100192,208.57,208.5,7.96300192]
[1735822200247,6.068,208.57,208.5,7.96300192]
[1735822200441,6.78619766,208.57,208.5,7.96300192]
[1735822200836,14.74919958,208.57,208.49,12.398039]
[1735822201040,14.74919958,208.57,208.5,7.96300192]
[1735822201950,6.068,208.57,208.52,7.96300192]
[1735822202254,9.47160192,208.61,208.54,7.96300192]
[1735822202549,10.18979958,208.61,208.54,7.96300192]
[1735822204367,14.66609029,208.61,208.54,12.43929263]
[1735822204677,12.43929263,208.6,208.52,0.71916609]
[1735822204879,12.43929263,208.6,208.54,12.43929263]
[1735822206863,0.71819766,208.59,208.54,12.43929263]
[1735822207255,12.43929263,208.56,208.5,12.43929263]
[1735822207456,12.43929263,208.55,208.49,12.43929263]
[1735822210452,12.43929263,208.55,208.49,11.93929263]
[1735822211189,12.43929263,208.56,208.5,12.43929263]
[1735822214158,2.22679766,208.61,208.47,0.71930603]
[1735822214159,12.43929263,208.55,208.49,32.43929263]
[1735822214552,12.43929263,208.51,208.46,12.439292]
[1735822214777,7.7295,208.53,208.46,12.439292]
[1735822214778,12.43929263,208.5,208.46,12.439292]
[1735822215286,12.43929263,208.5,208.43,12.43929263]
[1735822217981,12.43929263,208.51,208.44,32.43929263]
[1735822218913,20.16879263,208.53,208.46,12.43929263]
[1735822219607,13.15749029,208.52,208.45,12.43929263]
[1735822219785,12.43929263,208.52,208.45,12.43929263]
[1735822221294,20.16879263,208.53,208.46,12.43929263]
[1735822221481,1.6512,208.53,208.5,12.43929263]
[1735822223378,13.15749029,208.57,208.5,12.43929263]
[1735822225119,12.43929263,208.56,208.49,12.43929263]
[1735822226210,7.96533499,208.55,208.49,7.96533499]
[1735822226723,0.71819766,208.54,208.48,7.96533499]
[1735822226878,8.68353265,208.54,208.47,7.96533499]
[1735822227905,7.96533499,208.52,208.42,0.71937468]
[1735822228126,8.68353265,208.51,208.44,7.96533499]
[1735822228918,7.96533499,208.51,208.44,7.96533499]
[1735822231015,7.96533499,208.5,208.42,0.71937468]
[1735822231190,7.96533499,208.49,208.43,7.96533499]
[1735822231810,9.48043499,208.49,208.43,20.0]
[1735822232223,7.5527,208.49,208.43,27.96533499]
[1735822232392,15.51803499,208.49,208.43,27.96533499]
[1735822233012,7.96533499,208.48,208.41,8.68483802]
[1735822233227,7.96533499,208.48,208.36,0.71951361]
[1735822233429,7.96533499,208.48,208.41,7.96533499]
[1735822233993,7.96533499,208.45,208.39,20.40462799]
[1735822234196,7.96533499,208.45,208.38,7.96533499]
[1735822234618,7.96533499,208.44,208.38,7.96533499]
[1735822235432,7.96533499,208.43,208.37,7.96533499]
[1735822235929,7.96533499,208.43,208.36,7.96533499]
[1735822236721,7.96533499,208.42,208.35,7.96533499]
[1735822236895,7.96533499,208.41,208.34,7.96533499]
[1735822237697,9.61383499,208.41,208.34,7.96533499]
[1735822238095,1.6485,208.41,208.36,7.96533499]
[1735822238329,1.6485,208.41,208.32,8.68517807]
[1735822238497,1.6485,208.41,208.36,7.96533499]
[1735822238901,1.578,208.48,208.38,7.96533499]
[1735822239102,7.96533499,208.47,208.41,7.96533499]
[1735822239532,9.54333499,208.48,208.41,7.96533499]
[1735822240612,9.54333499,208.48,208.34,5.7197057]
[1735822240613,6.08237469,208.56,208.44,7.96533499]
[1735822240820,7.96533499,208.52,208.45,7.96533499]
[1735822242337,12.45058791,208.51,208.44,12.45058791]
[1735822243442,12.45058791,208.52,208.45,12.45058791]
[1735822243625,12.45058791,208.52,208.46,12.45058791]
[1735822243820,12.45058791,208.53,208.46,12.45058791]
[1735822244218,12.45058791,208.52,208.45,12.45058791]
[1735822244421,12.45058791,208.48,208.41,12.45058791]
[1735822245140,12.45058791,208.47,208.4,12.45058791]
[1735822245908,12.45058791,208.46,208.4,12.45058791]
[1735822246902,1.6263,208.47,208.38,12.45058791]
[1735822246903,12.45058791,208.45,208.38,12.45058791]
[1735822248540,12.45058791,208.45,208.39,12.45058791]
[1735822248914,12.45058791,208.45,208.38,12.45058791]
[1735822249350,8.2557,208.47,208.34,0.71963516]
[1735822249351,12.45058791,208.43,208.36,20.0]
[1735822249514,12.45058791,208.42,208.36,32.45058791]
[1735822249912,12.45058791,208.43,208.36,32.45058791]
[1735822251137,12.45058791,208.43,208.37,12.45058791]
[1735822252343,12.45058791,208.44,208.37,12.45058791]
[1735822253320,12.45058791,208.43,208.36,12.45058791]
[1735822253836,12.45058791,208.42,208.36,12.45058791]
[1735822254039,12.45058791,208.43,208.36,12.45058791]
[1735822254544,12.45058791,208.42,208.35,32.45058791]
[1735822255049,12.45058791,208.41,208.35,32.45058791]
[1735822255344,12.45058791,208.42,208.35,32.45058791]
[1735822258567,12.45058791,208.43,208.36,12.45058791]
[1735822261270,12.45058791,208.43,208.34,20.0]
[1735822261474,12.45058791,208.43,208.35,12.45058791]
[1735822262273,7.9752561,208.43,208.35,7.9752561]
[1735822262572,7.9752561,208.43,208.36,7.9752561]
[1735822262870,7.9752561,208.43,208.34,20.0]
[1735822263045,7.9752561,208.43,208.36,7.9752561]
[1735822263570,10.23505068,208.47,208.34,20.0]
[1735822263571,7.9752561,208.44,208.37,7.9752561]
[1735822263749,7.9752561,208.49,208.42,7.9752561]
[1735822264967,7.9752561,208.48,208.42,7.9752561]
[1735822265142,7.9752561,208.48,208.41,7.9752561]
[1735822265661,7.9752561,208.48,208.37,0.71959039]
[1735822265867,7.9752561,208.44,208.35,1.6505]
[1735822266174,23.776884,208.51,208.4,7.9752561]
[1735822266667,7.9752561,208.46,208.39,7.9752561]
[1735822266885,7.9752561,208.45,208.38,7.9752561]
[1735822270358,9.90384816,208.52,208.41,7.9752561]
[1735822270568,7.9752561,208.5,208.42,7.9752561]
[1735822270754,7.9752561,208.48,208.41,7.9752561]
[1735822270951,7.9997,208.52,208.43,7.9752561]
[1735822271384,7.9752561,208.5,208.43,7.9752561]
[1735822273593,9.5643561,208.52,208.45,7.9752561]
[1735822276899,7.9752561,208.52,208.45,7.9752561]
[1735822277293,7.9752561,208.52,208.45,2.9752561]